fUST/lending_fUST_20260115
["ID","MTS","AMOUNT","RATE_DAILY","PERIOD"]
[401986187,1768438241522,-1503.83285644,0.00014368,2]
[401986189,1768438241532,-1500.0,0.00014368,2]
[401986191,1768438241540,-1500.0,0.00014368,2]
[401986193,1768438241550,-1500.0,0.00014368,2]
[401986195,1768438241559,-1500.0,0.00014368,2]
[401986197,1768438241568,-1500.0,0.00014368,2]
[401986199,1768438241577,-1503.99870158,0.00014368,2]
[401986201,1768438241586,-1500.0,0.00014368,2]
[401986203,1768438241595,-1500.0,0.00014368,2]
[401986205,1768438241603,-1288.90612665,0.00014368,2]
[401986207,1768438241614,-1500.0,0.00014368,2]
[401986210,1768438241624,-239.23149088,0.00014368,2]
[401986212,1768438241633,-658.07183809,0.00014368,2]
[401986213,1768438241642,-1500.0,0.00014368,2]
[401986216,1768438241652,-1500.0,0.00014368,2]
[401986217,1768438241661,-1500.0,0.00014368,2]
[401986219,1768438241670,-1500.0,0.00014368,2]
[401986221,1768438241679,-1500.0,0.00014368,2]
[401986223,1768438241688,-1500.0,0.00014368,2]
[401986225,1768438241696,-1500.0,0.00014368,2]
[401986227,1768438241706,-1500.0,0.00014368,2]
[401986229,1768438241716,-503.01901965,0.00014368,2]
[401986232,1768438241725,-1500.0,0.00014368,2]
[401986234,1768438241735,-416.89,0.0001441,2]
[401986236,1768438241745,-500.0,0.00014443,2]
[401986238,1768438241754,-500.0,0.00014443,2]
[401986240,1768438241763,-516.99529864,0.00014443,2]
[401986242,1768438241772,-100000.0,0.00014444,2]
[401986244,1768438241781,-5000.0,0.0001451,2]
[401986246,1768438241790,-250.0,0.00014704,2]
[401986248,1768438241799,-900.0,0.00014768,2]
[401986250,1768438241808,-622.97821503,0.00014795,2]
[401986252,1768438241818,-1500.0,0.00014795,2]
[401986254,1768438241827,-586.73306672,0.00014795,2]
[401986255,1768438241836,-317.50977535,0.00014795,2]
[401986257,1768438241846,-419.62973898,0.00014795,2]
[401986260,1768438241856,-1103.68651404,0.00014795,2]
[401986262,1768438241865,-1500.0,0.00014795,2]
[401986264,1768438241874,-1500.0,0.00014795,2]
[401986266,1768438241884,-200.84224431,0.00014795,2]
[401986268,1768438241893,-1082.85856265,0.00014795,2]
[401986270,1768438241903,-1500.0,0.00014795,2]
[401986272,1768438241912,-1500.0,0.00014795,2]
[401986274,1768438241922,-1500.0,0.00014795,2]
[401986276,1768438241932,-1518.01129916,0.00014795,2]
[401986278,1768438241941,-1165.99620392,0.00014795,2]
[401986280,1768438241950,-341.41978725,0.00014795,2]
[401986282,1768438241959,-1500.0,0.00014795,2]
[401986284,1768438241969,-827.64226173,0.00014795,2]
[401986286,1768438241980,-1500.0,0.00014795,2]
[401986288,1768438241990,-1292.00440399,0.00014795,2]
[401986290,1768438242000,-1500.0,0.00014795,2]
[401986292,1768438242011,-927.69304459,0.00014795,2]
[401986294,1768438242027,-1500.0,0.00014795,2]
[401986296,1768438242036,-522.48598281,0.00014795,2]
[401986298,1768438242046,-1500.0,0.00014795,2]
[401986300,1768438242056,-501.28209032,0.00014795,2]
[401986302,1768438242065,-1500.0,0.00014795,2]
[401986304,1768438242074,-1500.0,0.00014795,2]
[401986306,1768438242084,-1479.00156205,0.00014795,2]
[401986308,1768438242096,-1500.0,0.00014795,2]
[401986310,1768438242106,-1500.0,0.00014795,2]
[401986312,1768438242115,-1500.0,0.00014795,2]
[401986314,1768438242125,-1051.15225971,0.00014795,2]
[401986316,1768438242135,-151.0,0.000149,2]
[401986318,1768438242144,-2000.0,0.00014916,2]
[401986320,1768438242154,-375.30400497,0.00014916,2]
[401986322,1768438242163,-973.60741082,0.00014916,2]
[401986325,1768438242173,-503.76788333,0.00014916,2]
[401986327,1768438242182,-2000.0,0.00014916,2]
[401986329,1768438242191,-2000.0,0.00014916,2]
[401986331,1768438242202,-522.04357159,0.00014916,2]
[401986332,1768438242212,-2000.0,0.00014916,2]
[401986335,1768438242221,-2000.0,0.00014916,2]
[401986336,1768438242231,-1531.81939639,0.00014916,2]
[401986339,1768438242240,-2000.0,0.00014916,2]
[401986341,1768438242250,-2000.0,0.00014916,2]
[401986342,1768438242259,-2000.0,0.00014916,2]
[401986344,1768438242269,-2000.0,0.00014916,2]
[401986346,1768438242278,-623.81068567,0.00014916,2]
[401986348,1768438242288,-2000.0,0.00014916,2]
[401986350,1768438242297,-2000.0,0.00014916,2]
[401986353,1768438242307,-1209.88778028,0.00014916,2]
[401986355,1768438242316,-164.35893779,0.00014916,2]
[401986357,1768438242326,-2000.0,0.00014916,2]
[401986359,1768438242336,-1414.05067842,0.00015,2]
[401986361,1768438242345,-588.909417,0.00015068,2]
[401986363,1768438242354,-800.0,0.00015068,2]
[401986365,1768438242364,-425.11843017,0.00015099,2]
[401986367,1768438242374,-1200.0,0.00015316,2]
[401986368,1768438242384,-159.70838602,0.00015342,2]
[401986370,1768438242393,-2000.0,0.00015342,2]
[401986372,1768438242403,-2000.0,0.00015342,2]
[401986374,1768438242412,-992.62086011,0.00015342,2]
[401986376,1768438242421,-2000.0,0.00015342,2]
[401986378,1768438242431,-2000.0,0.00015342,2]
[401986380,1768438242442,-1001.41649607,0.00015342,2]
[401986382,1768438242452,-2000.0,0.00015342,2]
[401986384,1768438242462,-646.70021057,0.00015342,2]
[401986386,1768438242473,-2000.0,0.00015342,2]
[401986388,1768438242483,-1003.42728186,0.00015342,2]
[401986391,1768438242493,-373.84265648,0.00015342,2]
[401986393,1768438242504,-2000.0,0.00015342,2]
[401986395,1768438242514,-1882.91433928,0.00015364,2]
[401986397,1768438242523,-10000.0,0.00015364,2]
[401986400,1768438242534,-823.0,0.00015398,2]
[401986402,1768438242543,-2500.0,0.00015464,2]
[401986404,1768438242552,-2413.29712103,0.00015464,2]
[401986406,1768438242562,-2500.0,0.00015464,2]
[401986408,1768438242571,-500.0,0.00015464,2]
[401986410,1768438242580,-2500.0,0.00015464,2]
[401986413,1768438242590,-2500.0,0.00015464,2]
[401986414,1768438242598,-2500.0,0.00015464,2]
[401986415,1768438242607,-2171.14126243,0.00015464,2]
[401986417,1768438242616,-2500.0,0.00015464,2]
[401986419,1768438242767,-2500.0,0.00015464,2]
[401986421,1768438242776,-2500.0,0.00015464,2]
[401986422,1768438242785,-2500.0,0.00015464,2]
[401986424,1768438242794,-151.0,0.000155,2]
[401986426,1768438242803,-1000.0,0.00015786,2]
[401986428,1768438242812,-1500.0,0.00015864,2]
[401986430,1768438242821,-2500.0,0.0001589,2]
[401986432,1768438242830,-563.27896724,0.0001589,2]
[401986433,1768438242840,-2500.0,0.0001589,2]
[401986434,1768438242849,-559.4878042,0.0001589,2]
[401986435,1768438242858,-2500.0,0.0001589,2]
[401986436,1768438242868,-1211.66599686,0.0001589,2]
[401986437,1768438242877,-2500.0,0.0001589,2]
[401986438,1768438242886,-3000.0,0.00016012,2]
[401986439,1768438242895,-3000.0,0.00016012,2]
[401986440,1768438242904,-3000.0,0.00016012,2]
[401986441,1768438242914,-3000.0,0.00016012,2]
[401986442,1768438242924,-3000.0,0.00016012,2]
[401986443,1768438242934,-3000.0,0.00016012,2]
[401986444,1768438242943,-1192.29139729,0.00016012,2]
[401986445,1768438242953,-2416.13825137,0.00016012,2]
[401986446,1768438242963,-3000.0,0.00016012,2]
[401986447,1768438242973,-151.0,0.000161,2]
[401986448,1768438242984,-1600.0,0.00016164,2]
[401986449,1768438242994,-1800.0,0.00016412,2]
[401986450,1768438243004,-500.0,0.00016438,2]
[401986451,1768438243014,-595.30780858,0.00016438,2]
[401986452,1768438243029,-500.0,0.00016438,2]
[401986453,1768438243039,-565.69306315,0.00016438,2]
[401986454,1768438243049,-500.0,0.00016438,2]
[401986455,1768438243060,-500.0,0.00016438,2]
[401986456,1768438243069,-500.0,0.00016438,2]
[401986457,1768438243078,-200.0,0.00016438,2]
[401986458,1768438243088,-164.26686219,0.00016438,2]
[401986459,1768438243099,-1044.67516775,0.00016438,2]
[401986460,1768438243109,-3000.0,0.00016438,2]
[401986461,1768438243118,-3000.0,0.00016438,2]
[401986462,1768438243127,-3000.0,0.00016438,2]
[401986463,1768438243138,-260.29560408,0.00016438,2]
[401986464,1768438243147,-200.0,0.00016473,2]
[401986465,1768438243157,-3500.0,0.0001656,2]
[401986466,1768438243166,-3500.0,0.0001656,2]
[401986467,1768438243176,-3500.0,0.0001656,2]
[401986468,1768438243185,-3500.0,0.0001656,2]
[401986469,1768438243195,-3500.0,0.0001656,2]
[401986470,1768438243204,-3500.0,0.0001656,2]
[401986471,1768438243214,-3500.0,0.0001656,2]
[401986472,1768438243223,-151.0,0.000168,2]
[401986473,1768438243232,-1152.0,0.0001691,2]
[401986474,1768438243241,-2100.0,0.0001696,2]
[401986475,1768438243250,-270.0,0.00016986,2]
[401986476,1768438243260,-2087.94374426,0.00016986,2]
[401986477,1768438243269,-3500.0,0.00016986,2]
[401986478,1768438243278,-3500.0,0.00016986,2]
[401986479,1768438243287,-481.38410476,0.00017099,2]
[401986480,1768438243296,-4000.0,0.00017108,2]
[401986481,1768438243306,-2392.75982988,0.00017108,2]
[401986482,1768438243315,-4000.0,0.00017108,2]
[401986483,1768438243324,-4000.0,0.00017108,2]
[401986484,1768438243333,-4000.0,0.00017108,2]
[401986485,1768438243343,-1917.48910491,0.00017108,2]
[401986486,1768438243354,-4000.0,0.00017108,2]
[401986487,1768438243364,-2400.0,0.0001726,2]
[401986488,1768438243373,-1000.0,0.00017365,2]
[401986489,1768438243382,-244.0,0.00017365,2]
[401986490,1768438243391,-151.0,0.000174,2]
[401986491,1768438243400,-5000.0,0.00017412,2]
[401986492,1768438243410,-2400.0,0.00017508,2]
[401986493,1768438243419,-400.0,0.00017534,2]
[401986494,1768438243429,-174.48080933,0.00017534,2]
[401986495,1768438243439,-4000.0,0.00017534,2]
[401986496,1768438243448,-4000.0,0.00017534,2]
[401986497,1768438243458,-4500.0,0.00017656,2]
[401986498,1768438243468,-4500.0,0.00017656,2]
[401986499,1768438243478,-4500.0,0.00017656,2]
[401986500,1768438243488,-1775.16206822,0.00017656,2]
[401986501,1768438243499,-4500.0,0.00017656,2]
[401986502,1768438243508,-1882.91433928,0.00017723,2]
[401986503,1768438243517,-400.30202268,0.00017842,2]
[401986504,1768438243527,-2700.0,0.00018056,2]
[401986505,1768438243536,-4500.0,0.00018082,2]
[401986506,1768438243546,-4500.0,0.00018082,2]
[401986507,1768438243555,-5000.0,0.00018204,2]
[401986508,1768438243565,-5000.0,0.00018204,2]
[401986509,1768438243574,-5000.0,0.00018204,2]
[401986510,1768438243584,-5000.0,0.00018204,2]
[401986511,1768438243593,-3200.0,0.00018356,2]
[401986512,1768438243603,-588.909417,0.00018493,2]
[401986513,1768438243613,-1041.66666667,0.00018568,2]
[401986514,1768438243622,-1613.0,0.00018571,2]
[401986515,1768438243632,-3000.0,0.00018604,2]
[401986516,1768438243642,-600.0,0.0001863,2]
[401986517,1768438243653,-5000.0,0.0001863,2]
[401986518,1768438243663,-5000.0,0.0001863,2]
[401986519,1768438243672,-4088.14205975,0.00018752,2]
[401986520,1768438243683,-5500.0,0.00018752,2]
[401986521,1768438243693,-5500.0,0.00018752,2]
[401986522,1768438243704,-5500.0,0.00018752,2]
[401986523,1768438243714,-2777.6351,0.00018863,2]
[401986524,1768438243723,-303.10001603,0.000189,2]
[401986525,1768438243733,-7906.2534018,0.00019078,2]
[401986526,1768438243744,-28338.342302,0.00019089,7]
[401986527,1768438243753,-47230.570504,0.00019089,7]
[401986528,1768438243763,-303.10001603,0.00019089,2]
[401986529,1768438243772,-4250.751345,0.00019089,7]
[401986530,1768438243782,-7084.585576,0.00019089,7]
[401986531,1768438243791,-537.64977934,0.00019099,2]
[401986532,1768438243800,-1000.0,0.00019101,2]
[401986533,1768438243809,-492.0,0.00019101,2]
[401986534,1768438243819,-3156.20051056,0.00019152,2]
[401986535,1768438243828,-188922.282014,0.00019178,7]
[401986536,1768438243837,-5500.0,0.00019178,2]
[401986537,1768438243846,-5500.0,0.00019178,2]
[401986538,1768438243855,-176.85,0.000192,2]
[401986539,1768438243864,-3524.13,0.000192,2]
[401986540,1768438243874,-201.5,0.000192,2]
[401986541,1768438243882,-26956.66,0.000192,2]
[401986542,1768438243891,-167.77,0.000192,2]
[401986543,1768438243901,-303.10001603,0.00019278,2]
[401986544,1768438243917,-3540.44472477,0.000193,2]
[401986545,1768438243932,-6000.0,0.000193,2]
[401986546,1768438243941,-6000.0,0.000193,2]
[401986547,1768438243952,-655.0,0.00019346,2]
[401986548,1768438243962,-307.61092211,0.00019452,2]
[401986549,1768438243972,-303.10001603,0.00019467,2]
[401986550,1768438243981,-168.28,0.00019634,2]
[401986551,1768438243991,-303.10001603,0.00019656,2]
[401986552,1768438244000,-800.0,0.00019726,2]
[401986553,1768438244010,-250.0,0.00019726,2]
[401986554,1768438244023,-250.0,0.00019726,2]
[401986555,1768438244033,-6000.0,0.00019726,2]
[401986556,1768438244042,-6000.0,0.00019726,2]
[401986557,1768438244051,-99686.154678,0.00019845,7]
[401986558,1768438244061,-636.790212,0.00019845,2]
[401986559,1768438244071,-636.790212,0.00019845,2]
[401986560,1768438244080,-636.790212,0.00019845,2]
[401986561,1768438244091,-636.790212,0.00019845,2]
[401986562,1768438244101,-1198.591214,0.00019845,2]
[401986563,1768438244110,-1198.591214,0.00019845,2]
[401986564,1768438244119,-1198.591214,0.00019845,2]
[401986565,1768438244128,-1198.591214,0.00019845,2]
[401986566,1768438244137,-454.65002405,0.00019845,4]
[401986567,1768438244147,-6500.0,0.00019848,2]
[401986568,1768438244156,-6500.0,0.00019848,2]
[401986569,1768438244165,-500.0,0.0002,2]
[401986570,1768438244174,-500.0,0.0002,2]
[401986571,1768438244183,-9661.0,0.0002,2]
[401986572,1768438244193,-300.0,0.0002,2]
[401986573,1768438244202,-151.55000802,0.0002,2]
[401986575,1768438244211,-339.47924352,0.00020034,4]
[401986576,1768438244220,-1882.91433928,0.00020082,2]
[401986577,1768438244229,-200.91058964,0.00020274,2]
[401986578,1768438244239,-350.0,0.00020274,2]
[401986579,1768438244248,-4402.72600724,0.00020274,2]
[401986580,1768438244257,-6500.0,0.00020274,2]
[401986581,1768438244268,-655.0,0.00020327,2]
[401986582,1768438244277,-2258.0,0.00020394,2]
[401986583,1768438244286,-2573.24025849,0.00020396,2]
[401986585,1768438244296,-5183.87260271,0.00020396,2]
[401986586,1768438244305,-2872.691767,0.00020548,2]
[401986587,1768438244313,-7906.25340176,0.00020664,2]
[401986588,1768438244323,-168.26957802,0.00020712,2]
[401986589,1768438244332,-1000.0,0.00020822,2]
[401986590,1768438244341,-450.0,0.00020822,2]
[401986591,1768438244351,-7000.0,0.00020822,2]
[401986592,1768438244360,-176.85,0.000209,2]
[401986593,1768438244369,-3524.13,0.000209,2]
[401986594,1768438244379,-201.5,0.000209,2]
[401986595,1768438244388,-26956.66,0.000209,2]
[401986596,1768438244398,-1000.0,0.00021011,2]
[401986597,1768438244407,-791.0,0.00021011,2]
[401986598,1768438244417,-593.91545392,0.00021099,2]
[401986599,1768438244427,-402.28551192,0.0002115,2]
[401986600,1768438244436,-655.0,0.00021308,2]
[401986601,1768438244445,-550.0,0.0002137,2]
[401986602,1768438244455,-7500.0,0.0002137,2]
[401986603,1768438244465,-157.49913752,0.00021383,5]
[401986604,1768438244475,-222.87587,0.00021628,7]
[401986605,1768438244485,-168.28,0.0002164,2]
[401986606,1768438244494,-1322.09450288,0.00021914,2]
[401986607,1768438244503,-222.949825,0.00021918,2]
[401986608,1768438244512,-179.25521,0.00021918,2]
[401986609,1768438244522,-179.25521,0.00021918,2]
[401986610,1768438244531,-179.25521,0.00021918,2]
[401986611,1768438244540,-179.25521,0.00021918,2]
[401986612,1768438244549,-151.0,0.00021918,2]
[401986613,1768438244558,-151.0,0.00021918,2]
[401986614,1768438244567,-202.608611,0.00021918,2]
[401986615,1768438244576,-202.608611,0.00021918,2]
[401986616,1768438244585,-202.608611,0.00021918,2]
[401986617,1768438244594,-202.608611,0.00021918,2]
[401986618,1768438244603,-151.0,0.00021918,2]
[401986619,1768438244611,-151.0,0.00021918,2]
[401986620,1768438244620,-588.909417,0.00021918,2]
[401986621,1768438244630,-151.0,0.00021918,2]
[401986622,1768438244639,-151.0,0.00021918,2]
[401986623,1768438244647,-151.0,0.00021918,2]
[401986624,1768438244656,-161.864545,0.00021918,2]
[401986625,1768438244666,-151.0,0.00021918,2]
[401986626,1768438244675,-208.349086,0.00021918,2]
[401986627,1768438244684,-151.0,0.00021918,2]
[401986628,1768438244693,-275.55471384,0.00021918,2]
[401986629,1768438244701,-151.0,0.00021918,2]
[401986630,1768438244711,-151.0,0.00021918,2]
[401986631,1768438244719,-151.0,0.00021918,2]
[401986632,1768438244728,-151.0,0.00021918,2]
[401986633,1768438244738,-151.0,0.00021918,2]
[401986634,1768438244747,-647.94593,0.00021918,2]
[401986635,1768438244755,-647.94593,0.00021918,2]
[401986636,1768438244764,-647.94593,0.00021918,2]
[401986637,1768438244772,-647.94593,0.00021918,2]
[401986638,1768438244781,-151.0,0.00021918,2]
[401986639,1768438244790,-210.61279,0.00021918,2]
[401986640,1768438244799,-210.61279,0.00021918,2]
[401986641,1768438244808,-151.0,0.00021918,2]
[401986642,1768438244817,-210.61279,0.00021918,2]
[401986643,1768438244826,-151.0,0.00021918,2]
[401986644,1768438244835,-210.61279,0.00021918,2]
[401986645,1768438244843,-151.0,0.00021918,2]
[401986646,1768438244853,-151.0,0.00021918,2]
[401986647,1768438244862,-151.0,0.00021918,2]
[401986648,1768438244871,-1200.0,0.00021918,2]
[401986649,1768438244880,-650.0,0.00021918,2]
[401986650,1768438244890,-8000.0,0.00021918,2]
[401986651,1768438244899,-151.0,0.00021918,2]
[401986652,1768438244908,-151.0,0.00021918,2]
[401986653,1768438244918,-151.0,0.00021918,2]
[401986654,1768438244928,-151.0,0.00021918,2]
[401986655,1768438244938,-514.887575,0.00021918,2]
[401986656,1768438244947,-514.887575,0.00021918,2]
[401986657,1768438244956,-514.887575,0.00021918,2]
[401986658,1768438244965,-514.887575,0.00021918,2]
[401986659,1768438244975,-151.0,0.00021918,2]
[401986660,1768438244985,-151.0,0.00021918,2]
[401986661,1768438244994,-151.0,0.00021918,2]
[401986662,1768438245003,-151.0,0.00021918,2]
[401986663,1768438245012,-151.0,0.00021918,2]
[401986664,1768438245024,-262.883608,0.00021918,2]
[401986665,1768438245033,-1322.09450288,0.00021952,4]
[401986666,1768438245043,-11807.642626,0.00021952,30]
[401986667,1768438245051,-19679.404376,0.00021952,30]
[401986668,1768438245061,-1771.146394,0.00021952,30]
[401986669,1768438245070,-2951.910656,0.00021952,30]
[401986670,1768438245079,-1322.09450288,0.00021989,6]
[401986671,1768438245089,-2143.68,0.00022,7]
[401986672,1768438245098,-1322.09450288,0.00022027,8]
[401986673,1768438245142,-157.49913751,0.00022044,5]
[401986674,1768438245152,-1322.09450288,0.00022065,10]
[401986675,1768438245161,-1322.09450288,0.00022102,13]
[401986676,1768438245170,-1322.09450288,0.0002214,15]
[401986677,1768438245179,-1322.09450288,0.00022178,17]
[401986678,1768438245187,-1322.09450288,0.00022215,19]
[401986679,1768438245196,-7906.25340176,0.0002225,2]
[401986680,1768438245205,-1322.09450288,0.00022253,21]
[401986681,1768438245214,-655.0,0.00022289,2]
[401986682,1768438245223,-1322.09450288,0.00022291,24]
[401986683,1768438245232,-1322.09450288,0.00022328,26]
[401986684,1768438245242,-1322.09450288,0.00022366,28]
[401986685,1768438245251,-3162.0,0.00022397,2]
[401986686,1768438245260,-1322.09450288,0.00022404,30]
[401986687,1768438245269,-1882.91433928,0.00022441,2]
[401986688,1768438245278,-1322.09450288,0.00022441,32]
[401986689,1768438245287,-200.0,0.00022466,2]
[401986690,1768438245296,-750.0,0.00022466,2]
[401986691,1768438245305,-864.52541442,0.00022466,2]
[401986692,1768438245314,-1322.09450288,0.00022479,35]
[401986693,1768438245323,-260.45964144,0.00022493,7]
[401986694,1768438245332,-167.77,0.000225,7]
[401986695,1768438245341,-1322.09450288,0.00022517,37]
[401986696,1768438245350,-1322.09450288,0.00022554,39]
[401986697,1768438245359,-1322.09450288,0.00022592,41]
[401986698,1768438245368,-1322.09450288,0.0002263,43]
[401986699,1768438245377,-1322.09450288,0.00022667,46]
[401986700,1768438245386,-1322.09450288,0.00022705,48]
[401986701,1768438245395,-1322.09450288,0.00022743,50]
[401986702,1768438245404,-1322.09450288,0.0002278,52]
[401986703,1768438245413,-1861355.77573299,0.000228,2]
[401986706,1768438245656,-608.63082,0.000228,2]
[401986707,1768438245667,-340.0,0.000228,2]
[401986708,1768438246141,-302.0,0.000228,2]
[401986710,1768438379021,3000.0,0.00027397,120]
[401986713,1768438490062,163.0,0.000273,120]
[401986714,1768438491007,163.0,0.000273,120]
[401986715,1768438500842,163.0,0.000273,120]
[401986716,1768438501347,163.0,0.000273,120]
[401986717,1768438509657,163.0,0.000273,120]
[401986718,1768438510214,163.0,0.000273,120]
[401986719,1768438520372,163.0,0.000273,120]
[401986720,1768438521689,163.0,0.000273,120]
[401986722,1768438537250,162.0,0.000273,120]
[401986723,1768438551202,163.48375877,0.000273,120]
[401986725,1768438910893,475.0,0.00027397,120]
[401986726,1768438911194,475.0,0.00027397,120]
[401986727,1768438911487,475.0,0.00027397,120]
[401986728,1768438911813,475.0,0.00027397,120]
[401986729,1768438912092,475.0,0.00027397,120]
[401986730,1768438912422,475.0,0.00027397,120]
[401986731,1768438912684,475.0,0.00027397,120]
[401986732,1768438912997,475.0,0.00027397,120]
[401986733,1768438913294,475.0,0.00027397,120]
[401986734,1768438913649,475.0,0.00027397,120]
[401986735,1768438913983,475.0,0.00027397,120]
[401986736,1768438914286,475.0,0.00027397,120]
[401986737,1768438914616,475.0,0.00027397,120]
[401986738,1768438914913,475.0,0.00027397,120]
[401986739,1768438915232,475.0,0.00027397,120]
[401986740,1768438915518,475.0,0.00027397,120]
[401986741,1768438915797,475.0,0.00027397,120]
[401986742,1768438916273,475.0,0.00027397,120]
[401986743,1768438977335,475.0,0.0002739,120]
[401986744,1768438978512,475.0,0.0002739,120]
[401986745,1768438978806,475.0,0.0002739,120]
[401986746,1768438979105,475.0,0.0002739,120]
[401986747,1768438979513,475.0,0.0002739,120]
[401986748,1768438979827,475.0,0.0002739,120]
[401986749,1768438980145,475.0,0.0002739,120]
[401986750,1768438980438,475.0,0.0002739,120]
[401986751,1768438980783,475.0,0.0002739,120]
[401986752,1768438981043,475.0,0.0002739,120]
[401986753,1768438982040,475.0,0.0002739,120]
[401986754,1768438982356,475.0,0.0002739,120]
[401986755,1768438982693,475.0,0.0002739,120]
[401986756,1768438983035,475.0,0.0002739,120]
[401986757,1768438983341,475.0,0.0002739,120]
[401986758,1768438983667,475.0,0.0002739,120]
[401986759,1768438983974,475.0,0.0002739,120]
[401986760,1768438984339,475.0,0.0002739,120]
[401986761,1768438984658,475.0,0.0002739,120]
[401986762,1768438984958,475.0,0.0002739,120]
[401986763,1768438985263,475.0,0.0002739,120]
[401986764,1768438985548,475.0,0.0002739,120]
[401986765,1768438985901,475.0,0.0002739,120]
[401986766,1768438986216,475.0,0.0002739,120]
[401986767,1768438986516,475.0,0.0002739,120]
[401986768,1768438986805,475.0,0.0002739,120]
[401986769,1768438987097,475.0,0.0002739,120]
[401986770,1768438987819,475.0,0.0002739,120]
[401986771,1768438988216,475.0,0.0002739,120]
[401986772,1768438988418,475.0,0.0002739,120]
[401986773,1768438988705,475.0,0.0002739,120]
[401986774,1768438988993,475.0,0.0002739,120]
[401986775,1768438989295,475.0,0.0002739,120]
[401986776,1768438989616,475.0,0.0002739,120]
[401986777,1768438989923,475.0,0.0002739,120]
[401986778,1768438990416,475.0,0.0002739,120]
[401986779,1768438990919,475.0,0.0002739,120]
[401986780,1768438991219,475.0,0.0002739,120]
[401986781,1768438991524,475.0,0.0002739,120]
[401986782,1768438991812,475.0,0.0002739,120]
[401986783,1768438992106,475.0,0.0002739,120]
[401986784,1768438992424,475.0,0.0002739,120]
[401986785,1768438992731,475.0,0.0002739,120]
[401986786,1768438993015,475.0,0.0002739,120]
[401986787,1768438993324,475.0,0.0002739,120]
[401986788,1768438993636,390.578,0.0002739,120]
[401986792,1768439135718,1000.0,0.00027397,120]
[401986793,1768439136015,1000.0,0.00027397,120]
[401986794,1768439136305,1000.0,0.00027397,120]
[401986795,1768439136602,1000.0,0.00027397,120]
[401986796,1768439136894,1000.0,0.00027397,120]
[401986797,1768439200150,2000.0,0.00027397,120]
[401986798,1768439200455,2000.0,0.00027397,120]
[401986799,1768439200753,2000.0,0.00027397,120]
[401986800,1768439201054,2000.0,0.00027397,120]
[401986801,1768439201358,2000.0,0.00027397,120]
[401986802,1768439201645,2000.0,0.00027397,120]
[401986803,1768439202566,2000.0,0.00027397,120]
[401986804,1768439202859,2000.0,0.00027397,120]
[401986805,1768439203135,2000.0,0.00027397,120]
[401986806,1768439204093,2000.0,0.00027397,120]
[401986807,1768439204402,2000.0,0.00027397,120]
[401986808,1768439204699,2000.0,0.00027397,120]
[401986809,1768439204990,2000.0,0.00027397,120]
[401986810,1768439205307,2000.0,0.00027397,120]
[401986811,1768439205594,2000.0,0.00027397,120]
[401986812,1768439205877,2000.0,0.00027397,120]
[401986813,1768439206557,996.312,0.00027397,120]
[401986814,1768439275369,-311.78,0.00011297,2]
[401986815,1768439275391,-271.35190399,0.00011408,2]
[401986816,1768439275412,-300.0,0.0001152,2]
[401986817,1768439275434,-300.0,0.0001152,2]
[401986818,1768439275454,-1200.0,0.0001152,2]
[401986819,1768439275474,-300.0,0.0001152,2]
[401986820,1768439275495,-214.32,0.00011521,2]
[401986821,1768439275516,-43249.39043546,0.00011521,2]